Workbook

Sheet Sheet1
A1: ATTACHMENT 1
A3: REGS | B3: REASON | C3: PREV- IOUS BURDEN | D3: NEW BURDEN | E3: DIFFER- ENCE | F3: TYPE OF CHANGE
A4: 7 CFR | B4: BACKGROUND QUESTIONNAIRE
A5: 955.22 | B5: 955 - Vidalia Onions FV-174 (Producer & Producer/ Handler) Inc. in respondents | C5: 1.36 | D5: 2.67 | E5: =SUM(D5-C5) -> 1.31 | F5: ADJ
A6: 989.30 989.32 | B6: 989 - California Raisins FV-219 (Handlers) Inc. in respondents | C6: 1.15 | D6: 1.3 | E6: 0.15 | F6: ADJ
A7: 955.22 | B7: 955 - Vidalia Onions FV-175 (Public Member) Rounding error | C7: .34 | D7: .33 | E7: -0.01 | F7: ADJ
A8: 985.23 | B8: 985 - Spearmint Oil FV-57 (ProducerMember/Alternate Member) Rounding error | C8: .21 | D8: .23 | E8: 0.02 | F8: `ADJ
A9: 7 CFR | B9: COMMITTEE BALLOTS/NOMINATIONS
A10: 932.25 932.28 | B10: 932 - Olives FV-269 Producer Nomination Ballot - District 1 This burden used to be accounted for together with FV-273, FV-274, and FV-275, but has been seperated into its own burden. | C10: 0 | D10: 17.71 | E10: =SUM(D10-C10) -> 17.71 | F10: PC
A11: 932.25 932.28 | B11: 932 - Olives FV-273 Producer Nomination Ballot - District 2 This burden used to be accounted for together with FV-273, FV-274, and FV-275, but has been seperated into its own burden. | C11: 0 | D11: 17.71 | E11: 17.71 | F11: PC
B12: Subtotal | E12: =SUM(E5:E11) -> 36.89
A13: 932.25 932.28 | B13: 932 - Olives Producer Nomination Ballot - Districts 1-4 (FV-269, FV-273, FV-274, FV-275) Forms FV-274 and FV-275 were deleted. The burden is now reflected seperately in FV-269 and FV-273. | C13: 35.28 | D13: 0 | E13: -35.28 | F13: PC
A14: 955 | B14: 955 - Vidalia Onions No form number - Nomination Ballot NEW FORM | C14: 0 | D14: .33 | E14: 0.33 | F14: PC
A15: 984.37 984.437 | B15: 984 - Walnuts No form number- Producer Ballot, Districts One and Two Combined into one form; inc. in respondents | C15: 119.52 | D15: 159.78 | E15: 40.26 | F15: PC
A16: 984.37 | B16: 984 - Walnuts No form number - Handler Ballot Inc. in respondents | C16: 2.28 | D16: 2.61 | E16: =SUM(D16-C16) -> 0.33 | F16: ADJ
A17: 993.28(a) 993.128 | B17: 993 - California Dried Prunes No form number - Ballot Inc. in response time | C17: 8.50 | D17: 100 | E17: 91.50 | F17: ADJ
A18: 989.30 989.32 | B18: 989 - California Raisins FV-219 (Handlers) | C18: 1.15 | D18: 1.30 | E18: 0.15 | F18: ADJ
A19: 7 CFR | B19: LETTER OF ACCEPTANCE
A20: 932.28 | B20: 932 - Olives No form number - Form combined with Producer Questionnaire | C20: 0.00 | D20: 0.00 | E20: 0.00 | F20: PC
A21: 948.59 | B21: 948 - Colorado Potatoes No form number NEW FORM | C21: 0.00 | D21: 0.00 | E21: 0.00 | F21: PC
B22: Subotal | E22: 97.29
A23: 955.24 | B23: 955 - Vidalia Onions No form number Increased respondents | C23: 0.00 | D23: 0.00 | E23: 0.00 | F23: PC
A24: 984.39 | B24: 984 - California Walnuts No form number Form deleted | C24: 0.00 | D24: 0.00 | E24: 0.00 | F24: PC
A25: 7 CFR | B25: MARKETING AGREEMENT
A26: 900.14 | B26: Marketing Agreement - FV-325 (Used by all commodities in this package) NEW FORM | C26: 0 | D26: 9.37 | E26: 9.37 | F26: PC
A27: 900.14 | B27: 932 - Olives FV-235 Form deleted | C27: 0.03 | D27: 0.00 | E27: -0.03 | F27: PC
A28: 900.14 | B28: 945 - Idaho/E. Oregon Potatoes FV-132 Form deleted | C28: 0.66 | D28: 0.00 | E28: -0.66 | F28: PC
A29: 900.14 | B29: 946 - Washington Potatoes FV-40 Form deleted | C29: .62 | D29: 0.00 | E29: -0.62 | F29: PC
A30: 900.14 | B30: 947 - Oregon/California Potatoes FV-79 Form deleted | C30: .25 | D30: 0.00 | E30: -0.25 | F30: PC
A31: 900.14 | B31: 948 - Colorado Potatoes FV-51 Form deleted | C31: 1.31 | D31: 0 | E31: =SUM(D31-C31) -> -1.31 | F31: PC
A32: 900.14 | B32: 953 - Southeastern Potatoes FV-111 Form deleted | C32: .17 | D32: 0 | E32: -0.17 | F32: PC
A33: 900.14 | B33: 955 - Vidalia Onions FV-155 Form deleted | C33: 1.04 | D33: 0 | E33: -1.04 | F33: PC
A34: 900.14 | B34: 956 - Walla Walla Onions FV-113 Form deleted | C34: .39 | D34: 0 | E34: -0.39 | F34: PC
B35: Subtotal | E35: =SUM(E23:E34) -> 4.90
A36: 900.14 | B36: 958 - Idaho/E. Oregon Onions FV-31 Form deleted | C36: .53 | D36: 0 | E36: -0.53 | F36: PC
A37: 900.14 | B37: 959 - South Texas Onions FV-89 Form deleted | C37: .53 | D37: 0 | E37: -0.53 | F37: PC
A38: 900.14 | B38: 966 - Florida Tomatoes FV-69 Form deleted | C38: .58 | D38: 0 | E38: =SUM(D38-C38) -> -0.58 | F38: PC
A39: 900.14 | B39: 981 - California Almonds FV-180 Form deleted | C39: 1.59 | D39: 0 | E39: -1.59 | F39: PC
A40: 900.14 | B40: 982 - Hazelnuts FV-137 Form deleted | C40: .15 | D40: 0 | E40: -0.15 | F40: PC
A41: 900.14 | B41: 984 - Walnuts FV-127 Form deleted | C41: .61 | D41: 0 | E41: -0.61 | F41: PC
A42: 900.14 | B42: 985 - Spearmint Oil FV-63 Form deleted | C42: .14 | D42: 0 | E42: =SUM(D42-C42) -> -0.14 | F42: PC
A43: 900.14 | B43: 987 - California Dates FV-73 Form deleted | C43: .14 | D43: 0 | E43: -0.14 | F43: PC
A44: 900.14 | B44: 989 - California Raisins FV-225 Form deleted | C44: .32 | D44: 0 | E44: -0.32 | F44: PC
A45: 900.14 | B45: 993 - California Dried Prunes FV-169 Form deleted | C45: .17 | D45: 0 | E45: -0.17 | F45: PC
A46: 7 CFR | B46: CERTIFICATE OF RESOLUTION
A47: 900.14 | B47: 948 - Colorado Potatoes FV-51A Dec. in respondents | C47: 1.31 | D47: 1.12 | E47: -0.19 | F47: ADJ
A48: 900.14 | B48: 953 - Southeastern Potatoes FV-111A Form deleted | C48: .83 | D48: 0 | E48: -0.83 | F48: PC
B49: Subtotal | E49: =SUM(E36:E48) -> -5.78
A50: 900.14 | B50: 958 - Idaho/E. Oregon Onions FV-31A Inc. in respondents | C50: .53 | D50: .55 | E50: 0.02 | F50: ADJ
A51: 900.14 | B51: 989 - California Raisins FV-225A Dec. in respondents | C51: .14 | D51: .03 | E51: -0.11 | F51: ADJ
A52: 7 CFR | B52: PRODUCER REFERENDUM
A53: 900.403 932.68 | B53: 932 - Olives FV-236 Producer's Referendum Ballot Form deleted and replaced by two separate forms (FV-236A and FV-236B) | C53: 70.85 | D53: 0.00 | E53: -70.85 | F53: PC
A54: 900.403 932.68 | B54: 932 - Olives FV-236A Producer's Referendum Ballot (Dist. 1) Dec. in response time NEW FORM | C54: 0 | D54: 17.71 | E54: 17.71 | F54: PC
A55: 900.403 932.68 | B55: 932 - Olives FV-236B Producer's Referendum Ballot (Dist. 2) Dec. in response time NEW FORM | C55: 0 | D55: 17.71 | E55: 17.71 | F55: PC
A56: 900.403 932.66 | B56: 953 - Southeastern Potatoes FV-110 Form deleted | C56: 2.48 | D56: 0 | E56: -2.48 | F56: PC
A57: 900.403 955.71(d) | B57: 955 - Vidalia Onions FV-156 Producer Referendum Ballot Dec. in respondents | C57: 5.56 | D57: 5.50 | E57: -0.06 | F57: ADJ
A58: 900.403 958.71 | B58: 958 - Idaho/E. Oregon Onions FV-30A Cooperative Association Referendum Ballot Inc. in response time | C58: .01 | D58: .06 | E58: =SUM(D58-C58) -> 0.05 | F58: ADJ
A59: 900.403 959.84 | B59: 959 - South Texas Onions FV-94 Dec. in respondents | C59: 6.27 | D59: 5.17 | E59: =SUM(D59-C59) -> -1.10 | F59: ADJ
B60: Subtotal | E60: =SUM(E50:E59) -> -39.11
A61: 900.403 959.84 | B61: 959 - South Texas Onions FV-94A Amendment Referendum NEW FORM | C61: 0 | D61: 5.17 | E61: =SUM(D61-C61) -> 5.17 | F61: ADJ
A62: 900.403 966.92 | B62: 966 - Florida Tomatoes FV-68 Official Producer Ballot Inc. in respondents | C62: 3.3 | D62: 4.29 | E62: =SUM(D62-C62) -> 0.99 | F62: ADJ
A63: 900.14 981.92 | B63: 981 - California Almonds FV-178 Producer Referendum Ballot Inc. in respondents | C63: 139.19 | D63: 172.60 | E63: 33.41 | F63: ADJ
A64: 900.403 982.86 | B64: 982 - Hazelnuts FV-136 - Producer Referendum Ballot Inc. in no. of responses | C64: 23.10 | D64: 38.51 | E64: =SUM(D64-C64) -> 15.41 | F64: ADJ
A65: 900.403 982.86 | B65: 982 - Hazelnuts FV-136A - Cooperative Association Referendum Ballot Inc. in no. of responses | C65: .07 | D65: 0.11 | E65: 0.04 | F65: ADJ
A66: 900.14 985.72 | B66: 985 - Spearmint Oil FV-60 Producer's Referendum Ballot (Amendment and Termination) Dec. in respondents | C66: 12.38 | D66: 8.25 | E66: =SUM(D66-C66) -> -4.13 | F66: ADJ
A67: 900.403 989.91 | B67: 989 - California Raisins FV-224 Producer's Referendum Ballot Dec. in respondents | C67: 220.04 | D67: 165.03 | E67: -55.01 | F67: ADJ
A68: 7 CFR | B68: CERTIFICATE OF PRIVILEGE
A69: 945.56 945.80 945.122 934.341 | B69: 945 - Idaho/E. Oregon Potatoes | C69: 12.24 | D69: 12.02 | E69: -0.22 | F69: ADJ
B70: Subtotal | E70: =SUM(E61:E69) -> -4.34
A71: 953.44 | B71: 953 - Southeastern Potatoes No form number Form deleted | C71: 1.8 | D71: 0 | E71: =SUM(D71-C71) -> -1.80 | F71: PC
A72: 958.56 958.328 | B72: 958 - Idaho/E. Oregon Onions FV-34 Application to Make Special Purpose Shipments - Certificate of Privilege Inc. in respondents | C72: 7.8 | D72: 10 | E72: 2.20 | F72: ADJ
A73: 959.122 | B73: 959 - South Texas Onions No form number Inc. in respondents | C73: 1.25 | D73: 2.16 | E73: 0.91 | F73: ADJ
A74: 7 CFR | B74: SPECIAL PURPOSE SHIPMENT
A75: 948.23 948.24 948.386 | B75: 948 - Colorado Potatoes No form number; Exemption for Certified Seed Potatoes (Area II) NEW FORM | C75: 0 | D75: 41.5 | E75: 41.50 | F75: PC
A76: 948.23 948.24 948.386 | B76: 948 - Colorado Potatoes No form number; Exemption for Fingerling Potatoes (Area II) NEW FORM | C76: 0 | D76: 41.5 | E76: 41.50 | F76: PC
A77: 953.44 | B77: 953 - Southeastern Potatoes No form number Form deleted | C77: 7.97 | D77: 0 | E77: =SUM(D77-C77) -> -7.97 | F77: PC
A78: 958.56 958.328 | B78: 958 - Idaho/E. Oregon Onions FV-36 Special Purpose Shipment Receiver Certification Inc. in respondents | C78: .6 | D78: 1.67 | E78: =SUM(D78-C78) -> 1.07 | F78: ADJ
A79: 959.124 | B79: 959 - South Texas Onions No form number; Report of Special Purpose Onion Shipment Inc. in respondents | C79: 20.75 | D79: 26.98 | E79: 6.23 | F79: ADJ
B80: Subtotal | E80: =SUM(E71:E79) -> 83.64
A81: 959.124 | B81: 959 - South Texas Onions No form number; Report of Special Purpose Onion Shipment Erroneously duplicated on previous submission | C81: 37.35 | D81: 0 | E81: -37.35 | F81: ADJ
A82: 7 CFR | B82: APPLICATION FOR REGISTERED HANDLER
A83: 966.56(a) 966.323(d)(3) | B83: 966 - Florida Tomatoes FTC-103 Application for Certified Tomato Repacker Inc. in respondents | C83: 1.66 | D83: 2.16 | E83: =SUM(D83-C83) -> 0.50 | F83: ADJ
A84: 7 CFR | B84: RECORD KEEPING
A85: 981.70 | B85: 981 - California Almonds Dec. in record keepers | C85: 166.75 | D85: 0 | E85: -166.75 | F85: ADJ
A86: 984.80 984.480 | B86: 984 - California Walnuts Inc. in record keepers | C86: 44 | D86: 63 | E86: 19.00 | F86: ADJ
A87: 989.176 | B87: 989 - California Raisins Inc. in record keepers | C87: 336 | D87: 436.8 | E87: =SUM(D87-C87) -> 100.80 | F87: ADJ
A88: 7 CFR | B88: 932 - OLIVES
A89: 932.152(c) | B89: COC-4 Pack and Certification Report Inc. in response time | C89: 25.60 | D89: 40 | E89: =SUM(D89-C89) -> 14.40 | F89: ADJ
A90: 932.519 32.151(e) | B90: COC-5 Report of Limited, Undersized, and Cull Olives Dec. in response time | C90: 50 | D90: 25 | E90: -25.00 | F90: ADJ
B91: Subtotal | E91: =SUM(E81:E90) -> -94.40
A92: 932.54 932.154(a) | B92: COC-6 Report of Interhandler Transfer Form deleted | C92: 3.3 | D92: 0 | E92: -3.30 | F92: PC
A93: 932.29 | B93: COC-13 Statement of Assessable Tonnage Dec. in response time | C93: 1 | D93: .5 | E93: -0.50 | F93: ADJ
A94: 932.139 | B94: COC-17 Final Assessment Payment Dec. in response time | C94: 1 | D94: .5 | E94: -0.50 | F94: ADJ
A95: 932.61 932.161(a) | B95: COC-19 Weekly Report of Olives Received Dec. in response time | C95: 9 | D95: 4.5 | E95: -4.50 | F95: ADJ
A96: 932.61 932.161(b) | B96: COC-21 Report of Ripe Olives Sales Form deleted | C96: 6 | D96: 0 | E96: -6.00 | F96: PC
A97: 932.161 932.161(d)(1) | B97: COC-27a Inventory Holdings of Canned Ripe Olives Dec. in response time | C97: 36 | D97: 24 | E97: -12.00 | F97: ADJ
A98: 932.61 932.161(e)(1) | B98: COC-27c Report of Canning Size Olives in Storage Dec. in response time | C98: 15.84 | D98: 12 | E98: =SUM(D98-C98) -> -3.84 | F98: ADJ
A99: 932.61 932.161(f)(1) | B99: COC-28a Packout Report of Canned Ripe Olives Dec. in response time | C99: 36 | D99: 24 | E99: -12.00 | F99: ADJ
A100: 932.61 932.161(f)(2) | B100: COC-28b Packout Report of Canned Ripe Olives - Limited Use Dec. in response time | C100: 18 | D100: 12 | E100: -6.00 | F100: ADJ
A101: 932.61 932.161(b)(2)(i) | B101: COC-29a Sales of Canned Ripe Olives Dec. in response time | C101: 36 | D101: 24 | E101: =SUM(D101-C101) -> -12.00 | F101: ADJ
A102: 932.61 | B102: COC-30 Interhandler Sale or Purchase of Canned Ripe Olives | C102: 1.60 | D102: 1.67 | E102: =SUM(D102-C102) -> 0.07 | F102: ADJ
B103: Subtotal | E103: =SUM(E92:E102) -> -60.57
B104: 945 - IDAHO/E. OREGON POTATOES
A105: 945.56 945.80 945.124 945.341 | B105: Certificate of Privilege Shipment Summary (Handlers and Receivers) No form number | C105: 12.24 | D105: 12.02 | E105: =SUM(D105-C105) -> -0.22 | F105: ADJ
A106: 945.80 945.341 | B106: Destination Zip Code & Quantity Reporting Requirement (verbally) Certificate of Privilege Dec. in response time | C106: 126.48 | D106: 24.78 | E106: =SUM(D106-C106) -> -101.70 | F106: ADJ
A107: 945.80 945.341 | B107: Destination Zip Code and Quantity Reporting Requirement (verbally) Shipments Inc. in response time | C107: 251.1 | D107: 3096.90 | E107: =SUM(D107-C107) -> 2,845.80 | F107: ADJ
A108: 7 CFR | B108: 946 - WASHINGTON POTATOES
A109: 946.70 | B109: Inspection Certificate Failing Marketing Order Requirements; no form number Dec. in response time | C109: 3.98 | D109: 2.4 | E109: =SUM(D109-C109) -> -1.58 | F109: ADJ
A110: 946.55 946.120 946.336 | B110: Shipper's Application for Special Purpose Certificate; no form number Dec. in respondents | C110: 1.74 | D110: 1.49 | E110: -0.25 | F110: ADJ
A111: 946.70 946.143 | B111: Monthly Russett Fresh Potato Report; no form number Merge into this package from 0581-0266 | C111: 0 | D111: 32.87 | E111: =SUM(D111-C111) -> 32.87 | F111: PC
A112: 7 CFR | B112: 947 - OREGON/CALIFORNIA POTATOES
B113: Subtotal | E113: =SUM(E104:E112) -> 2,774.92
A114: 947.340 | B114: Load Report Sheet Waiver of Inspection | C114: 4.25 | D114: 4.18 | E114: =SUM(D114-C114) -> -0.07 | F114: ADJ
A115: 7 CFR | B115: 948 - COLORADO POTATOES
A116: 948.30 948.130 | B116: Application for Hardship Exemption (Area III); no form number NEW FORM | C116: 0 | D116: 0 | E116: =SUM(D116-C116) -> 0.00 | F116: PC | G116: No form number
A117: 948.30 | B117: Handler Application for Waiver of Inspection (Area III); no form number NEW FORM | C117: 0 | D117: 1.35 | E117: 1.35 | F117: PC | G117: No Form number
A118: 948.30 | B118: Waiver of Inspection - Weekly Shipment Report (Area III); no form number NEW FORM | C118: 0 | D118: 32.4 | E118: 32.40 | F118: PC
A119: 7 CFR | B119: 955 - VIDALIA ONIONS
A120: 955.60 | B120: FV-181 Monthly Vidalia Onion Handler Report Inc. in respondents and no. of responses | C120: 18.68 | D120: 78.68 | E120: =SUM(D120-C120) -> 60.00 | F120: ADJ
A121: 7 CFR | B121: 958 - IDAHO/E.OREGON ONIONS
A122: 958.56 958.180 | B122: FV-35 Onion Diversion Report | C122: 260 | D122: 266.6 | E122: 6.60 | F122: ADJ
B123: Subtotal | E123: =SUM(E114:E122) -> 100.28
A124: 958.42 958.240 958.250 | B124: Assessment Credit Report | C124: 91 | D124: 93.31 | E124: 2.31 | F124: ADJ
A125: 7 CFR | B125: 959 - SOUTH TEXAS ONIONS
A126: 959.115 | B126: Onion Acreage Registration; no form number Dec. in respondents | C126: 28.39 | D126: 22.41 | E126: =SUM(D126-C126) -> -5.98 | F126: ADJ
A127: 959.126 | B127: Certification for Handling Onions for Processing (Canners and/or Freezers); no form number Dec. in respondents | C127: 1.25 | D127: .83 | E127: -0.42 | F127: ADJ
A128: 959.126 | B128: Certification for Subcontractors who Peel and/or Chop Onions for Processors for Special Purpose Onion Shipments; no form number Dec. in respondents | C128: .17 | D128: .08 | E128: -0.09 | F128: ADJ
A129: 959.126 | B129: Relief or Charity Certification for Handling Onions which Fail to Meet the South Texas Onion Rules and Regulations; no form number Dec. in respondents | C129: .42 | D129: .33 | E129: =SUM(D129-C129) -> -0.09 | F129: ADJ
A130: 7 CFR | B130: 966 - FLORIDA TOMATOES
A131: 966.323(e) | B131: Tomato Total Lot Manifest; no form number Form deleted | C131: 1029.20 | D131: 0 | E131: -1,029.20 | F131: PC
A132: 7 CFR | B132: 981 - CALIFORNIA ALMONDS
B133: Subtotal | E133: =SUM(E124:E132) -> -1,033.47
A134: 981.72 981.472(a) | B134: ABC 1 Summary Report Dec. in respondents | C134: 690 | D134: 600 | E134: =SUM(D134-C134) -> -90.00 | F134: ADJ
A135: 981.73 981.473 | B135: ABC 2 Redetermination Report Dec. in respondents | C135: 172.5 | D135: 150 | E135: -22.50 | F135: ADJ
A136: 981.73 981.473 | B136: ABC 2A Current Inventory for Next Redetermination Report Dec. in respondents and inc. in response time | C136: 86.25 | D136: 150 | E136: =SUM(D136-C136) -> 63.75 | F136: ADJ
A137: 981.74 981.474(a) | B137: ABC 25-1 Report of Shipments and Commitments Dec. in respondents | C137: 690 | D137: 600 | E137: -90.00 | F137: ADJ
A138: 981.74 981.474(a) | B138: ABC 25-2 Shipments by Country of Destination Dec. in respondents | C138: 690 | D138: 600 | E138: -90.00 | F138: ADJ
A139: 981.441(e) (6) | B139: Claim for Credit-Back Advertising Activities; no form number Form deleted | C139: 33.2 | D139: 0 | E139: =SUM(D139-C139) -> -33.20 | F139: PC
A140: 981.441(e)(6)(iv) | B140: Statement of Outstanding Credit-Back Commitments at End of Crop Year; no form number Form deleted | C140: .83 | D140: 0 | E140: =SUM(D140-C140) -> -0.83 | F140: PC
A141: 981.441(e)(6) | B141: Credit-Back Guide; no form number NEW FORM | C141: 0 | D141: 5 | E141: =SUM(D141-C141) -> 5.00 | F141: PC
A142: 981.442(a)(5) | B142: ABC 8 Inedible and Exempt Outlet Disposition - Notice of Delivery to Oil or Feed Dec. in respondents | C142: 202.98 | D142: 176.50 | E142: -26.48 | F142: ADJ
B143: Subtotal | E143: =SUM(E134:E142) -> -284.26
A144: 981.442(a)(7) | B144: Documentation to Accompany ABC Form 8; no form number Form deleted | C144: 13.4 | D144: 0 | E144: -13.40 | F144: PC
A145: 981.442(a)(7) | B145: ABC 34 Application to be Approved as an Accepted User of Inedible Almonds and Almond Waste Inc. in response time | C145: 3.57 | D145: 21.50 | E145: 17.93 | F145: ADJ
A146: 981.67 981.467 | B146: ABC 12 Agency Agreement - Disposition of Reserve to Non-Competitive Outlets Dec. in respondents | C146: 19.21 | D146: 16.7 | E146: =SUM(D146-C146) -> -2.51 | F146: ADJ
A147: 981.474 | B147: ABC 42 Handler Information Sheet Dec. in respondents | C147: 28.75 | D147: 25 | E147: -3.75 | F147: ADJ
A148: 7 CFR | B148: 982 - HAZELNUTS
A149: 982.37 | B149: F/H Form H Statement of Expense Inc. in respondents | C149: 1.8 | D149: 2.5 | E149: =SUM(D149-C149) -> 0.70 | F149: ADJ
A150: 982.50 982.66 982.450 982.466 | B150: F/H Form 1 Report of Hazelnut Certifications Shipments and Diversion Requirements Inc. in respondents | C150: 22.5 | D150: 31.25 | E150: 8.75 | F150: ADJ
A151: 982.50 982.66 982.450 982.466 | B151: F/H Form 1(a) Free Tonnage Shipments Inc. in respondents | C151: 18 | D151: 25 | E151: 7.00 | F151: ADJ
A152: 982.50 982.66 982.450 982.466 | B152: F/H Form 1(b) Export Inshell Shipments Inc. in respondents | C152: 18 | D152: 25 | E152: 7.00 | F152: ADJ
B153: Subtotal | E153: =SUM(E144:E152) -> 21.72
A154: 982.50 982.66 982.450 982.466 | B154: F/H Form 1(c) Kernels Certified Inc. in respondents | C154: 18 | D154: 25 | E154: =SUM(D154-C154) -> 7.00 | F154: ADJ
A155: 982.50 982.66 982.450 982.466 | B155: F/H Form 1(d) Restricted Inshell Certified Inc. in respondents | C155: 4.50 | D155: 6.25 | E155: 1.75 | F155: ADJ
A156: 982.50 982.66 982.450 982.466 | B156: F/H Form 1(e) Kernel Shipments Inc. in respondents | C156: 12 | D156: 25 | E156: =SUM(D156-C156) -> 13.00 | F156: ADJ
A157: 982.50 982.450 | B157: F/H Form 4 Declaration of Inshell Hazelnuts Inc. in respondents | C157: 1.98 | D157: 8.25 | E157: 6.27 | F157: ADJ
A158: 982.52 982.452 | B158: F/H Form A Export Agreement Inc. in respondents | C158: .5 | D158: 6.25 | E158: 5.75 | F158: ADJ
A159: 982.52 982.452 | B159: F/H Form B Sheller's Application for Letter of Authority Inc. in respondents | C159: 6 | D159: 7.5 | E159: 1.50 | F159: ADJ
A160: 982.52 982.67 982.450 982.452 982.466 | B160: F/H Form 7 Report of Disposition of Restricted Set-aside Inshell Hazelnuts Inc. in respondents and dec. in response time | C160: .32 | D160: .75 | E160: =SUM(D160-C160) -> 0.43 | F160: ADJ
A161: 982.53 982.453 | B161: F/H Form D Application to be listed as an Accepted User of Inedible Hazelnuts and Hazelnut Waste Inc. in respondents | C161: .33 | D161: 1.65 | E161: 1.32 | F161: ADJ
A162: 982.53 982.453 | B162: F/H Form D(1) Hazelnut Waste Product Control Report Inc. in respondents | C162: .08 | D162: .42 | E162: =SUM(D162-C162) -> 0.34 | F162: ADJ
B163: Subtotal | E163: =SUM(E154:E162) -> 37.36
A164: 982.65 982.468 | B164: F/H Form 5 Report to Hazelnut Marketing Board of Handler Carryover Inc. in respondents | C164: 5.94 | D164: 8.25 | E164: 2.31 | F164: ADJ
A165: 982.65 982.468 | B165: F/H Form 6 Hazelnuts Received, Disposed of or on Hand Inc. in respondents | C165: 18 | D165: 25 | E165: =SUM(D165-C165) -> 7.00 | F165: ADJ
A166: 7 CFR | B166: 984 - CALIFORNIA WALNUTS
A167: 984.37 984.437 | B167: District 1 Walnut Grower's Petition; no form number Inc. in respondents due to regulation change | C167: 2 | D167: 1150 | E167: =SUM(D167-C167) -> 1,148.00 | F167: ADJ
A168: 984.37 984.437 | B168: District 2 Walnut Grower's Petition; no form number Inc. in respondents due to regulation change | C168: 2 | D168: 775 | E168: =SUM(D168-C168) -> 773.00 | F168: ADJ
A169: 984.37 984.437 | B169: At Large Walnut Grower's Petition; no form number Inc. in respondents due to regulation change | C169: 2 | D169: 1925 | E169: 1,923.00 | F169: ADJ
A170: 984.56 984.456 | B170: CWB-16 Agency Agreement for Reserve Walnuts (Exports) Inc. in respondents | C170: 4.57 | D170: 5.23 | E170: 0.66 | F170: ADJ
A171: 984.56 984.456 | B171: CWB-17 Request for Transfer of Reserve Credits Inc. in respondents | C171: 4.98 | D171: 7.84 | E171: 2.86 | F171: ADJ
A172: 984.56 | B172: CWB Export Form B Consummation of Sale and Transmittal of Supporting Documents Inc. in respondents | C172: 797.50 | D172: 913.5 | E172: =SUM(D172-C172) -> 116.00 | F172: ADJ
B173: Subtotal | E173: =SUM(E164:E172) -> 3,972.83
A174: 984.56 984.64 984.464 | B174: CWB-20 Report of Substandard Walnuts Delivered Inc. in respondents | C174: 33.51 | D174: 38.38 | E174: =SUM(D174-C174) -> 4.87 | F174: ADJ
A175: 984.71 984.471 | B175: CWB 4&5 Inventory Report (Inshell and Shelled) Inc. in respondents | C175: 56.1 | D175: 63.13 | E175: 7.03 | F175: ADJ
A176: 984.72 984.472 | B176: CWB-6 Report of Merchantable Walnuts Shipped Inc. in respondents | C176: 112.2 | D176: 126.25 | E176: 14.05 | F176: ADJ
A177: 984.73 984.473 | B177: CWB-1 Crop Acquisition Report, by County and Variety, for Crop Year Inc. in respondents | C177: 4.57 | D177: 5.23 | E177: 0.66 | F177: ADJ
A178: 984.73 984.476 | B178: CWB-7 Quarterly Report of Receipt of Walnuts Produced Outside the United States Inc. in respondents | C178: 1.99 | D178: 20.92 | E178: 18.93 | F178: ADJ
A179: 984.59 984.76 984.459 | B179: CWB-8 Report of Interhandler Transfers Inc. in respondents | C179: 5.95 | D179: 52.61 | E179: =SUM(D179-C179) -> 46.66 | F179: ADJ
A180: 7 CFR | B180: 985 - SPEARMINT OIL
A181: 985.52 985.54 985.56 985.57 985.152 985.156 | B181: Annual Allotment Certificate, Class 1 | C181: 51.00 | D181: 50.10 | E181: -0.90 | F181: ADJ
B182: Subtotal | E182: =SUM(E174:E181) -> 91.30
A183: 985.52 985.54 985.56 985.57 985.152 985.156 | B183: Annual Allotment Certificate, Class 3 (also used for filing of deficiency); no form number Inc. in no. of responses | C183: 63.75 | D183: 66.8 | E183: =SUM(D183-C183) -> 3.05 | F183: ADJ
A184: 985.53 985.153 | B184: Application for Additional Base (Class 1 - Scotch) (for existing producers); no form number Dec. in respondents | C184: 8.3 | D184: 4.15 | E184: =SUM(D184-C184) -> -4.15 | F184: ADJ
A185: 985.53 985.153 | B185: Application for Additional Base (Class 3 - Native) (for existing producers); no form number Dec. in respondents | C185: 10.38 | D185: 8.3 | E185: -2.08 | F185: ADJ
A186: 985.54 985.154 | B186: Application for Class 1 (Scotch) Annual Allotment; no form number Dec. in respondents | C186: 8.3 | D186: 4.15 | E186: =SUM(D186-C186) -> -4.15 | F186: ADJ
A187: 985.54 985.154 | B187: Application for Class 3 (Native) Annual Allotment; no form number Dec. in respondents | C187: 10.38 | D187: 8.3 | E187: -2.08 | F187: ADJ
A188: 985.55 985.155 | B188: H-1 Still Form (Class 1 - green) (identification of oil by producer)(same form used for Class 3) Dec. in respondents | C188: 66 | D188: 33 | E188: -33.00 | F188: ADJ
A189: 985.55 985.155 | B189: H-1 Still Form (Class 3-blue) (identification of oil by producer)(same form used for Class 1) Dec. in respondents | C189: 82.5 | D189: 66 | E189: -16.50 | F189: ADJ
B190: Subtotal | E190: =SUM(E183:E189) -> -58.91
A191: 985.59 | B191: G-1 Allotment Base Transfer (same form for both Class 1 and 3) Inc. in respondents | C191: 2.08 | D191: 4.15 | E191: 2.07 | F191: ADJ
A192: 7 CFR | B192: 987 - CALIFORNIA DATES
A193: 987.64 987.164 987.112(a) 987.112(a)(d)(3) | B193: CDAC-11(a) Clearance for Export of Dates to Mexico Inc. in response time | C193: 1.98 | D193: 3 | E193: =SUM(D193-C193) -> 1.02 | F193: ADJ
A194: 987.147(b) 987.47 | B194: CDAC-SP-1 Delivery Manifest Inc. in response time | C194: 5.2 | D194: 13 | E194: =SUM(D194-C194) -> 7.80 | F194: ADJ
A195: 987.151 987.51 | B195: CDAC-1 Interhandler Transfer of Dates Inc. in response time | C195: 9 | D195: 18 | E195: 9.00 | F195: ADJ
A196: 987.152(a) 987.52 | B196: CDAC-9 Producer Application for Exemption from Regulations Inc. in response time | C196: 1.8 | D196: 3 | E196: 1.20 | F196: ADJ
A197: 987.152(a) 987.152(b)(1) | B197: CDAC-10 Handler Application for Certain Exemptions from Regulations Inc. in response time | C197: .4 | D197: 1 | E197: 0.60 | F197: ADJ
A198: 987.157 987.57 | B198: CDAC-3 Application to be Placed on the List of Approved Date Product Manufacturers Inc. in response time | C198: 3.2 | D198: 8 | E198: =SUM(D198-C198) -> 4.80 | F198: ADJ
A199: 987.165(a) | B199: CDAC-2 Report of Exempt Sales Inc. in response time | C199: 1 | D199: 2.5 | E199: 1.50 | F199: ADJ
B200: Subtotal | E200: =SUM(E191:E199) -> 27.99
A201: 7 CFR | B201: 989 - CALIFORNIA RAISINS
... 66 more rows
